Workbook

Sheet TITULAR
B2: Monto Solicitado | C2: 60000 | K2: Sí
B3: Seguro de Vida | C3: =+IF(C9="Sí",1.34%,3.3%) -> 0.033
B4: Monto adicional Seguro Vida | C4: =+C3*C2 -> 1980
B5: Monto a Financiar | C5: =+C2+C4 -> 61980
B6: Seguro Desempleo | C6: 0 | K6: No
B7: Monto adicional desempleo | C7: =C6*C5 -> 0
B8: MAF Total | C8: =C7+C5 -> 61980
B9: Empleado | C9: No
B10: Moneda | C10: Soles
B11: Plazo Remanente | C11: 12
B12: Fecha de Desembolso | C12: 2022-03-17
B13: Fecha de 1er Pago | C13: 2022-04-16
B14: Cuota Julio | C14: 1
B15: Cuota Diciembre | C15: 1
B16: TEA | C16: 0.45
B17: TEA TOTAL | C17: =+C16 -> 0.45
B18: Monto del Bien | C18: 0
B19: Seguro del Bien | C19: 0
B20: Portes | C20: 0
B21: Cuota | C21: =(C8+((C19*C18)+C20)*P25)/O25 -> 6297.71478
B23: TCEA | C23: 0.5443367527
U24: =C8-U25-C7-C4 -> 0
O25: =SUM(O27:O98) -> 9.841665138 | P25: =SUM(P27:P98) -> 9.841665138 | U25: =SUM(U27:U98) -> 60000
B26: N° Cuota | C26: Fecha de pago | D26: Día | E26: Fecha de pago | F26: Días | G26: Dias Acumulados | H26: Saldo Inicial | I26: Amortización | J26: Interés | K26: Seguro del Bien | L26: Portes | M26: Cuota Constante | N26: Saldo Final | O26: Factor Cronograma | P26: Factor Cronograma 2 | R26: Vector i,1 Cuota | S26: Vector i,2 Días Acum | T26: Vector i,3 Factor | U26: Vector i,4 Calculo VA
B27: 1 | C27: =C13 -> 2022-04-16 | D27: =IF(B27<=$C$11,WEEKDAY(C27,2),"") -> 6 | E27: =IF(D27=7,C27+1,C27) -> 2022-04-16 | F27: =E27-C12 -> 30 | G27: =F27 -> 30 | H27: =C8 -> 61980 | I27: =IF(B27>C$11,"",M27-L27-K27-J27) -> 4348.568413 | J27: =IF(B27>C$11,"",((1+C$16)^(F27/360)-1)*H27) -> 1949.146367 | K27: =IF(B27>C$11,"",C$18*C$19) -> 0 | L27: =IF(B27>C$11,"",C$20) -> 0 | M27: =IF(B27>C$11,"",IF(B27=C$11,H27+J27+K27+L27,IF(AND(C$14=2,MONTH(E27)=7),2*C$21,IF(AND(C$15=2,MONTH(E27)=12),2*C$21,C$21)))) -> 6297.71478 | N27: =IF(B27>C$11,"",H27-I27) -> 57631.43159 | O27: =IFERROR(IF(AND(MONTH(E27)=7,C$14=2),2/(1+C$17)^(G27/360),IF(AND(MONTH(E27)=12,C$15=2),2/(1+C$17)^(G27/360),1/(1+C$17)^(G27/360))),"") -> 0.9695108338 | P27: =IFERROR(1/(1+C$17)^(G27/360),"") -> 0.9695108338 | R27: =IFERROR(I27+J27+K27+L27,"") -> 6297.71478 | S27: =G27 -> 30 | T27: =IFERROR((1+C$23)^(S27/360),"") -> 1.036880007 | U27: =IFERROR(ROUND(R27/T27,2),"") -> 6073.72
B28: 2 | C28: =IF(B28>$C$11,"",EDATE(C27,1)) -> 2022-05-16 | D28: =IF(B28<=$C$11,WEEKDAY(C28,2),"") -> 1 | E28: =IF(D28=7,C28+1,C28) -> 2022-05-16 | F28: =IF(B28>C$11,"",E28-E27) -> 30 | G28: =IFERROR(F28+G27,"") -> 60 | H28: =IF(B28>C$11,"",N27) -> 57631.43159 | I28: =IF(B28>C$11,"",M28-L28-K28-J28) -> 4485.322146 | J28: 1812.392634 | K28: 0 | L28: 0 | M28: =IF(B28>C$11,"",IF(B28=C$11,H28+J28+K28+L28,IF(AND(C$14=2,MONTH(E28)=7),2*C$21,IF(AND(C$15=2,MONTH(E28)=12),2*C$21,C$21)))) -> 6297.71478 | N28: 53146.10944 | O28: 0.9399512569 | P28: 0.9399512569 | R28: =IFERROR(I28+J28+K28+L28,"") -> 6297.71478 | S28: 60 | T28: 1.075120149 | U28: 5857.68
B29: 3 | C29: 2022-06-16 | D29: 4 | E29: 2022-06-16 | F29: =IF(B29>C$11,"",E29-E28) -> 31 | G29: 91 | H29: 53146.10944 | I29: 4569.769061 | J29: 1727.945718 | K29: 0 | L29: 0 | M29: 6297.71478 | N29: 48576.34038 | O29: 0.9103528475 | P29: 0.9103528475 | R29: 6297.71478 | S29: 91 | T29: 1.116117159 | U29: 5642.52
B30: 4 | C30: 2022-07-16 | D30: 6 | E30: 2022-07-16 | F30: 30 | G30: 121 | H30: 48576.34038 | I30: 4770.086555 | J30: 1527.628224 | K30: 0 | L30: 0 | M30: 6297.71478 | N30: 43806.25382 | O30: 0.8825969483 | P30: 0.8825969483 | R30: 6297.71478 | S30: 121 | T30: 1.157279568 | U30: 5441.83
B31: 5 | C31: 2022-08-16 | D31: 2 | E31: 2022-08-16 | F31: 31 | G31: 152 | H31: 43806.25382 | I31: 4873.436888 | J31: 1424.277892 | K31: 0 | L31: 0 | M31: 6297.71478 | N31: 38932.81694 | O31: 0.8548045861 | P31: 0.8548045861 | R31: 6297.71478 | S31: 152 | T31: 1.201409522 | U31: 5241.94
B32: 6 | C32: 2022-09-16 | D32: 5 | E32: 2022-09-16 | F32: 31 | G32: 183 | H32: 38932.81694 | I32: 5031.887515 | J32: 1265.827265 | K32: 0 | L32: 0 | M32: 6297.71478 | N32: 33900.92942 | O32: 0.8278873859 | P32: 0.8278873859 | R32: 6297.71478 | S32: 183 | T32: 1.247222261 | U32: 5049.39
B33: 7 | C33: 2022-10-16 | D33: 7 | E33: 2022-10-17 | F33: 31 | G33: 214 | H33: 33900.92942 | I33: 5195.489867 | J33: 1102.224913 | K33: 0 | L33: 0 | M33: 6297.71478 | N33: 28705.43955 | O33: 0.8018177896 | P33: 0.8018177896 | R33: 6297.71478 | S33: 214 | T33: 1.294781953 | U33: 4863.92
B34: 8 | C34: 2022-11-16 | D34: 3 | E34: 2022-11-16 | F34: 30 | G34: 244 | H34: 28705.43955 | I34: 5394.986429 | J34: 902.7283512 | K34: 0 | L34: 0 | M34: 6297.71478 | N34: 23310.45313 | O34: 0.7773710338 | P34: 0.7773710338 | R34: 6297.71478 | S34: 244 | T34: 1.342533521 | U34: 4690.92
B35: 9 | C35: 2022-12-16 | D35: 5 | E35: 2022-12-16 | F35: 30 | G35: 274 | H35: 23310.45313 | I35: 5564.647903 | J35: 733.0668766 | K35: 0 | L35: 0 | M35: 6297.71478 | N35: 17745.80522 | O35: 0.7536696392 | P35: 0.7536696392 | R35: 6297.71478 | S35: 274 | T35: 1.392046167 | U35: 4524.07
B36: 10 | C36: 2023-01-16 | D36: 1 | E36: 2023-01-16 | F36: 31 | G36: 305 | H36: 17745.80522 | I36: 5720.743324 | J36: 576.9714562 | K36: 0 | L36: 0 | M36: 6297.71478 | N36: 12025.0619 | O36: 0.729937108 | P36: 0.729937108 | R36: 6297.71478 | S36: 305 | T36: 1.445128356 | U36: 4357.89
B37: 11 | C37: 2023-02-16 | D37: 4 | E37: 2023-02-16 | F37: 31 | G37: 336 | H37: 12025.0619 | I37: 5906.742525 | J37: 390.9722544 | K37: 0 | L37: 0 | M37: 6297.71478 | N37: 6118.319373 | O37: 0.7069518977 | P37: 0.7069518977 | R37: 6297.71478 | S37: 336 | T37: 1.500234701 | U37: 4197.82
B38: 12 | C38: 2023-03-16 | D38: 4 | E38: 2023-03-16 | F38: 28 | G38: 364 | H38: 6118.319373 | I38: 6118.319373 | J38: 179.3954071 | K38: 0 | L38: 0 | M38: 6297.71478 | N38: 0 | O38: 0.6868138114 | P38: 0.6868138114 | R38: 6297.71478 | S38: 364 | T38: 1.551812124 | U38: 4058.3
B39: 13
B40: 14
B41: 15
B42: 16
B43: 17
B44: 18
B45: 19
B46: 20
B47: 21
B48: 22
B49: 23
B50: 24
B51: 25
B52: 26
B53: 27
B54: 28
B55: 29
B56: 30
B57: 31
B58: 32
B59: 33
B60: 34
B61: 35
B62: 36
B63: 37
B64: 38
B65: 39
B66: 40
B67: 41
B68: 42
B69: 43
B70: 44
B71: 45
B72: 46
B73: 47
B74: 48
B75: 49
B76: 50
B77: 51
B78: 52
B79: 53
B80: 54
B81: 55
B82: 56
B83: 57
B84: 58
B85: 59
B86: 60
B87: 61
B88: 62
B89: 63
B90: 64
B91: 65 | D91: =IF(B91<=$C$11,WEEKDAY(C91,2),"") ->  | J91: =IF(B91>C$11,"",((1+C$16)^(F91/360)-1)*H91) ->  | K91: =IF(B91>C$11,"",C$18*C$19) ->  | L91: =IF(B91>C$11,"",C$20) ->  | N91: =IF(B91>C$11,"",H91-I91) ->  | O91: =IFERROR(IF(AND(MONTH(E91)=7,C$14=2),2/(1+C$17)^(G91/360),IF(AND(MONTH(E91)=12,C$15=2),2/(1+C$17)^(G91/360),1/(1+C$17)^(G91/360))),"") ->  | P91: =IFERROR(1/(1+C$17)^(G91/360),"") ->  | S91: =G91 ->  | T91: =IFERROR((1+C$23)^(S91/360),"") ->  | U91: =IFERROR(ROUND(R91/T91,2),"") -> 
B92: 66 | C92: =IF(B92>$C$11,"",EDATE(C91,1)) ->  | E92: =IF(D92=7,C92+1,C92) ->  | F92: =IF(B92>C$11,"",E92-E91) ->  | G92: =IFERROR(F92+G91,"") ->  | H92: =IF(B92>C$11,"",N91) ->  | I92: =IF(B92>C$11,"",M92-L92-K92-J92) ->  | M92: =IF(B92>C$11,"",IF(B92=C$11,H92+J92+K92+L92,IF(AND(C$14=2,MONTH(E92)=7),2*C$21,IF(AND(C$15=2,MONTH(E92)=12),2*C$21,C$21)))) ->  | R92: =IFERROR(I92+J92+K92+L92,"") -> 
B93: 67
B94: 68
B95: 69
B96: 70
B97: 71
B98: 72

Sheet TITULAR + CONYUGE
B2: Monto Solicitado | C2: 0 | K2: Sí
B3: Seguro de Vida | C3: =+IF(C9="Sí",2.68%,6.6%) -> 0.066
B4: Monto adicional Seguro Vida | C4: =+C3*C2 -> 0
B5: Monto a Financiar | C5: =+C2+C4 -> 0
B6: Seguro Desempleo | C6: 0 | K6: No
B7: Monto adicional desempleo | C7: =C6*C5 -> 0
B8: MAF Total | C8: =C7+C5 -> 0
B9: Empleado | C9: No
B10: Moneda | C10: Soles
B11: Plazo Remanente | C11: 0
B12: Fecha de Desembolso | C12: =TODAY() -> 2022-03-17
B13: Fecha de 1er Pago | C13: =EDATE(C12,1) -> 2022-04-17
B14: Cuota Julio | C14: 1
B15: Cuota Diciembre | C15: 1
B16: TEA | C16: 0
B17: TEA TOTAL | C17: =+C16 -> 0
B18: Monto del Bien | C18: 0
B19: Seguro del Bien | C19: 0
B20: Portes | C20: 0
B21: Cuota | C21: =(C8+(C19*C18+C20)*P25)/O25 -> 0
B23: TCEA | C23: 0.1694177998
U24: =C8-U25-C7-C4 -> 0
O25: =SUM(O27:O98) -> 1 | P25: =SUM(P27:P98) -> 1 | U25: =SUM(U27:U98) -> 0
B26: N° Cuota | C26: Fecha de pago | D26: Día | E26: Fecha de pago | F26: Días | G26: Dias Acumulados | H26: Saldo Inicial | I26: Amortización | J26: Interés | K26: Seguro del Bien | L26: Portes | M26: Cuota Constante | N26: Saldo Final | O26: Factor Cronograma | P26: Factor Cronograma 2 | R26: Vector i,1 Cuota | S26: Vector i,2 Días Acum | T26: Vector i,3 Factor | U26: Vector i,4 Calculo VA
B27: 1 | C27: =C13 -> 2022-04-17 | D27: =IF(B27<=$C$11,WEEKDAY(C27,2),"") ->  | E27: =IF(D27=7,C27+1,C27) -> 2022-04-17 | F27: =E27-C12 -> 31 | G27: =F27 -> 31 | H27: =C8 -> 0 | I27: =IF(B27>C$11,"",M27-L27-K27-J27) ->  | J27: =IF(B27>C$11,"",((1+C$16)^(F27/360)-1)*H27) ->  | K27: =IF(B27>C$11,"",C$18*C$19) ->  | L27: =IF(B27>C$11,"",C$20) ->  | M27: =IF(B27>C$11,"",IF(B27=C$11,H27+J27+K27+L27,IF(AND(C$14=2,MONTH(E27)=7),2*C$21,IF(AND(C$15=2,MONTH(E27)=12),2*C$21,C$21)))) ->  | N27: =IF(B27>C$11,"",H27-I27) ->  | O27: =IFERROR(IF(AND(MONTH(E27)=7,C$14=2),2/(1+C$17)^(G27/360),IF(AND(MONTH(E27)=12,C$15=2),2/(1+C$17)^(G27/360),1/(1+C$17)^(G27/360))),"") -> 1 | P27: =IFERROR(1/(1+C$17)^(G27/360),"") -> 1 | R27: =IFERROR(I27+J27+K27+L27,"") ->  | S27: =G27 -> 31 | T27: =IFERROR((1+C$23)^(S27/360),"") -> 1.01356813 | U27: =IFERROR(ROUND(R27/T27,2),"") -> 
B28: 2 | C28: =IF(B28>$C$11,"",EDATE(C27,1)) ->  | E28: =IF(D28=7,C28+1,C28) ->  | F28: =IF(B28>C$11,"",E28-E27) ->  | G28: =IFERROR(F28+G27,"") ->  | H28: =IF(B28>C$11,"",N27) ->  | I28: =IF(B28>C$11,"",M28-L28-K28-J28) ->  | M28: =IF(B28>C$11,"",IF(B28=C$11,H28+J28+K28+L28,IF(AND(C$14=2,MONTH(E28)=7),2*C$21,IF(AND(C$15=2,MONTH(E28)=12),2*C$21,C$21)))) ->  | R28: =IFERROR(I28+J28+K28+L28,"") -> 
B29: 3
B30: 4
B31: 5
B32: 6
B33: 7
B34: 8
B35: 9
B36: 10
B37: 11
B38: 12
B39: 13
B40: 14
B41: 15
B42: 16
B43: 17
B44: 18
B45: 19
B46: 20
B47: 21
B48: 22
B49: 23
B50: 24
B51: 25
B52: 26
B53: 27
B54: 28
B55: 29
B56: 30
B57: 31
B58: 32
B59: 33
B60: 34
B61: 35
B62: 36
B63: 37
B64: 38
B65: 39
B66: 40
B67: 41
B68: 42
B69: 43
B70: 44
B71: 45
B72: 46
B73: 47
B74: 48
B75: 49
B76: 50
B77: 51
B78: 52
B79: 53
B80: 54
B81: 55
B82: 56
B83: 57
B84: 58
B85: 59
B86: 60
B87: 61
B88: 62
B89: 63
B90: 64
B91: 65 | D91: =IF(B91<=$C$11,WEEKDAY(C91,2),"") ->  | J91: =IF(B91>C$11,"",((1+C$16)^(F91/360)-1)*H91) ->  | K91: =IF(B91>C$11,"",C$18*C$19) ->  | L91: =IF(B91>C$11,"",C$20) ->  | N91: =IF(B91>C$11,"",H91-I91) ->  | O91: =IFERROR(IF(AND(MONTH(E91)=7,C$14=2),2/(1+C$17)^(G91/360),IF(AND(MONTH(E91)=12,C$15=2),2/(1+C$17)^(G91/360),1/(1+C$17)^(G91/360))),"") ->  | P91: =IFERROR(1/(1+C$17)^(G91/360),"") ->  | S91: =G91 ->  | T91: =IFERROR((1+C$23)^(S91/360),"") ->  | U91: =IFERROR(ROUND(R91/T91,2),"") -> 
B92: 66 | C92: =IF(B92>$C$11,"",EDATE(C91,1)) ->  | E92: =IF(D92=7,C92+1,C92) ->  | F92: =IF(B92>C$11,"",E92-E91) ->  | G92: =IFERROR(F92+G91,"") ->  | H92: =IF(B92>C$11,"",N91) ->  | I92: =IF(B92>C$11,"",M92-L92-K92-J92) ->  | M92: =IF(B92>C$11,"",IF(B92=C$11,H92+J92+K92+L92,IF(AND(C$14=2,MONTH(E92)=7),2*C$21,IF(AND(C$15=2,MONTH(E92)=12),2*C$21,C$21)))) ->  | R92: =IFERROR(I92+J92+K92+L92,"") -> 
B93: 67
B94: 68
B95: 69
B96: 70
B97: 71
B98: 72
